bitfinex/quotes_SOLUSD_20250710
["timestamp","ask_amount","ask_price","bid_price","bid_amount"]
[1752179900795,6.61370991,160.29,160.27,88.35308818]
[1752179901094,0.68,160.28,160.27,88.35308818]
[1752179901299,5.93370991,160.29,160.27,119.95308818]
[1752179901675,6.61370991,160.29,160.27,88.35308818]
[1752179902200,6.61370991,160.29,160.28,31.6]
[1752179902375,5.93370991,160.29,160.28,31.6]
[1752179903009,6.59370991,160.29,160.28,31.6]
[1752179903177,6.59370991,160.29,160.27,88.35308818]
[1752179903498,6.59370991,160.29,160.28,31.6]
[1752179903499,5.93370991,160.29,160.28,31.6]
[1752179904087,6.59370991,160.29,160.28,31.6]
[1752179906385,6.59370991,160.29,160.27,88.35308818]
[1752179906694,6.59370991,160.29,160.28,31.6]
[1752179909299,6.59370991,160.29,160.25,0.65]
[1752179909300,6.59370991,160.29,160.25,88.35308818]
[1752179909598,26.0,160.27,160.25,88.35308818]
[1752179909791,0.66,160.26,160.25,88.35308818]
[1752179910884,0.66,160.26,160.25,119.95308818]
[1752179912495,0.66,160.26,160.25,88.35308818]
[1752179912684,7.61119355,160.26,160.22,352.46008818]
[1752179912886,7.61119355,160.26,160.23,31.6]
[1752179913085,7.61119355,160.26,160.22,264.107]
[1752179913086,0.66,160.25,160.22,264.107]
[1752179918496,26.0,160.23,160.22,264.107]
[1752179918702,26.66,160.23,160.22,264.107]
[1752179919406,0.66,160.28,160.23,16.78468397]
[1752179919611,5.93370991,160.29,160.24,32.36]
[1752179919818,5.93370991,160.29,160.25,0.7]
[1752179919990,0.66,160.28,160.26,31.66]
[1752179920412,0.66,160.27,160.26,31.66]
[1752179922198,6.59370991,160.29,160.26,31.66]
[1752179922511,0.66,160.28,160.26,31.66]
[1752179923593,6.59370991,160.29,160.26,31.66]
[1752179926318,0.66,160.28,160.26,31.66]
[1752179927317,0.66,160.27,160.26,31.66]
[1752179927620,6.59370991,160.29,160.26,31.66]
[1752179927917,0.66,160.28,160.26,31.66]
[1752179930117,26.0,160.26,160.22,264.107]
[1752179930321,6.726,160.27,160.22,264.107]
[1752179930322,43.06900711,160.23,160.22,263.217]
[1752179930492,59.50135122,160.23,160.22,263.217]
[1752179930697,77.7254887,160.23,160.22,294.917]
[1752179931131,51.16761418,160.23,160.22,294.917]
[1752179931333,41.40215037,160.23,160.22,294.917]
[1752179933422,34.73527007,160.23,160.22,294.917]
[1752179945223,51.66211561,160.23,160.22,263.217]
[1752179945424,68.01622451,160.23,160.22,294.897]
[1752179946027,67.87406294,160.23,160.22,294.897]
[1752179946223,40.75391516,160.23,160.22,294.897]
[1752179947036,41.32344466,160.23,160.22,294.897]
[1752179947337,58.10812863,160.23,160.22,294.897]
[1752179949016,57.53812863,160.23,160.22,294.897]
[1752179949617,58.10812863,160.23,160.22,294.897]
[1752179949813,58.2502902,160.23,160.22,294.897]
[1752179950026,68.01575401,160.23,160.22,294.897]
[1752179950223,69.25959794,160.23,160.22,294.897]
[1752179950724,68.01139224,160.23,160.22,294.897]
[1752179951633,68.01139224,160.23,160.22,263.217]
[1752179951935,68.01139224,160.23,160.22,294.897]
[1752179957344,69.25959794,160.23,160.22,294.877]
[1752179957925,68.01139224,160.23,160.22,294.877]
[1752179958133,69.25959794,160.23,160.22,294.877]
[1752179959040,69.25959794,160.23,160.22,263.217]
[1752179959233,69.25959794,160.23,160.22,294.877]
[1752179959846,68.01139224,160.23,160.22,294.877]
[1752179961223,67.99461667,160.23,160.22,294.877]
[1752179962541,67.99461667,160.23,160.22,263.217]
[1752179962542,69.24282237,160.23,160.22,263.217]
[1752179962938,69.24282237,160.23,160.22,291.4529124]
[1752179963247,69.24282237,160.23,160.22,288.3530248]
[1752179967035,69.24282237,160.23,160.22,253.57255266]
[1752179967236,69.24282237,160.23,160.22,285.21255266]
[1752179967432,69.24282237,160.23,160.22,282.09208052]
[1752179967952,69.24282237,160.23,160.22,278.97160838]
[1752179968472,69.24282237,160.23,160.22,275.85113624]
[1752179968640,69.24282237,160.23,160.22,272.7306641]
[1752179969059,69.24282237,160.23,160.22,269.61019196]
[1752179969563,69.24282237,160.23,160.22,266.48971982]
[1752179970530,67.99461667,160.23,160.22,266.48971982]
[1752179971127,69.24282237,160.23,160.22,266.48971982]
[1752179974338,69.24282237,160.23,160.22,263.08524255]
[1752179974748,69.24282237,160.23,160.22,259.96496528]
[1752179975139,69.24282237,160.23,160.22,256.84468801]
[1752179975660,69.24282237,160.23,160.22,253.74402097]
[1752179975954,69.24282237,160.23,160.22,250.62335393]
[1752179976365,69.24282237,160.23,160.22,247.50268689]
[1752179976545,69.24282237,160.23,160.22,247.48268689]
[1752179976740,69.24282237,160.23,160.22,244.36201985]
[1752179976938,69.24282237,160.23,160.22,212.72201985]
[1752179977139,69.24282237,160.23,160.22,241.24135281]
[1752179977348,69.24282237,160.23,160.22,240.95715281]
[1752179977566,69.24282237,160.23,160.22,237.83648577]
[1752179978097,69.24282237,160.23,160.22,234.71581873]
[1752179978244,69.30282237,160.23,160.22,234.71581873]
[1752179978454,69.30282237,160.23,160.22,231.59515169]
[1752179978871,69.30282237,160.23,160.22,228.47460204]
[1752179979163,69.30282237,160.23,160.22,225.35405239]
[1752179984183,68.73282237,160.23,160.22,225.35405239]
[1752179984379,67.48461667,160.23,160.22,225.35405239]
[1752179984560,41.48461667,160.23,160.22,225.35405239]
[1752179984759,33.46150817,160.23,160.22,226.01405239]
[1752179984973,33.60366974,160.23,160.22,226.01405239]
[1752179985359,33.46150817,160.23,160.22,226.01405239]
[1752179985761,33.60366974,160.23,160.22,226.01405239]
[1752179986173,6.62703725,160.23,160.22,226.01405239]
[1752179986376,16.33250106,160.28,160.22,227.55365239]
[1752179986583,26.0,160.24,160.23,32.32]
[1752179986783,32.56703725,160.24,160.23,0.66]
[1752179987884,32.56703725,160.24,160.23,32.32]
[1752179988893,6.56703725,160.24,160.23,32.32]
[1752179989064,16.78468397,160.25,160.23,32.32]
[1752179989267,6.56703725,160.24,160.23,31.66]
[1752179989491,9.90762538,160.28,160.22,195.25365239]
[1752179989492,6.56703725,160.27,160.22,195.25365239]
[1752179990000,26.0,160.24,160.23,0.66]
[1752179990195,32.56703725,160.24,160.23,0.66]
[1752179990790,32.56703725,160.24,160.23,32.32]
[1752179991164,26.0,160.25,160.23,32.32]
[1752179991418,26.0,160.24,160.22,195.25365239]
[1752179992000,26.0,160.24,160.23,0.66]
[1752179992173,26.0,160.25,160.23,0.66]
[1752179992494,26.0,160.24,160.23,0.66]
[1752179992805,26.0,160.24,160.23,32.3]
[1752179993708,26.0,160.25,160.23,32.3]
[1752179993996,26.0,160.25,160.23,31.64]
[1752179994181,26.0,160.25,160.24,0.67]
[1752179994384,32.61049873,160.25,160.24,0.67]
[1752179995175,39.70350121,160.25,160.24,0.67]
[1752179995870,66.53797213,160.25,160.24,0.67]
[1752179996095,76.7610154,160.25,160.24,0.67]
[1752179999880,59.69200829,160.25,160.24,0.67]
[1752180000205,59.75200829,160.25,160.24,0.67]
[1752180000516,33.75200829,160.25,160.24,0.67]
[1752180000705,27.14150956,160.25,160.24,0.67]
[1752180001179,53.14150956,160.25,160.24,0.67]
[1752180006413,42.91846629,160.25,160.24,0.67]
[1752180011779,33.15300248,160.25,160.24,0.67]
[1752180014017,26.06,160.25,160.24,0.67]
[1752180019216,33.15300248,160.25,160.24,0.67]
[1752180019418,33.15300248,160.25,160.24,32.29]
[1752180021401,33.15300248,160.25,160.24,0.67]
[1752180021606,33.15300248,160.25,160.24,32.29]
[1752180022408,33.15300248,160.25,160.24,0.67]
[1752180022723,33.15300248,160.25,160.24,32.29]
[1752180024328,39.77579907,160.25,160.24,32.29]
[1752180025734,39.77865684,160.25,160.24,32.29]
[1752180027634,39.77865684,160.25,160.23,0.67]
[1752180027815,6.62565436,160.24,160.23,0.67]
[1752180028908,6.62565436,160.24,160.23,32.29]
[1752180036246,6.62565436,160.24,160.22,195.92365239]
[1752180036543,6.62565436,160.23,160.22,195.25365239]
[1752180036750,6.62565436,160.24,160.22,195.25365239]
[1752180036930,6.62565436,160.23,160.22,195.92365239]
[1752180037248,6.62565436,160.24,160.22,195.25365239]
[1752180037423,6.62565436,160.23,160.22,195.25365239]
[1752180037623,6.62565436,160.24,160.23,0.67]
[1752180039844,6.62565436,160.24,160.23,32.29]
[1752180045439,7.25565436,160.24,160.22,193.71405239]
[1752180045671,9.46219718,160.23,160.22,193.71405239]
[1752180045846,13.71865684,160.23,160.22,225.33405239]
[1752180046145,41.51981389,160.23,160.22,193.71405239]
[1752180046351,41.51981389,160.23,160.22,199.01508108]
[1752180046858,41.51981389,160.23,160.22,167.39508108]
[1752180047031,41.51981389,160.23,160.22,199.01508108]
[1752180048053,42.76801959,160.23,160.22,167.39508108]
[1752180048350,42.76801959,160.23,160.22,199.01508108]
[1752180052635,42.76801959,160.23,160.22,167.39508108]
[1752180052953,42.76801959,160.23,160.22,199.01508108]
[1752180055146,42.13801959,160.23,160.22,199.01508108]
[1752180058257,42.76801959,160.23,160.22,199.01508108]
[1752180061365,42.76801959,160.23,160.22,167.39508108]
[1752180061760,42.76801959,160.23,160.22,199.01508108]
[1752180061962,42.76801959,160.23,160.22,167.39508108]
[1752180062147,42.76801959,160.23,160.22,199.01508108]
[1752180068189,36.14236523,160.23,160.22,199.01508108]
[1752180068356,42.48135007,160.23,160.22,199.01508108]
[1752180073377,41.23314437,160.23,160.22,199.01508108]
[1752180073568,40.60314437,160.23,160.22,199.01508108]
[1752180073988,40.31882123,160.23,160.22,199.01508108]
[1752180074168,40.60314437,160.23,160.22,199.01508108]
[1752180075166,41.85135007,160.23,160.22,199.01508108]
[1752180075783,42.48135007,160.23,160.22,199.01508108]
[1752180078185,42.48135007,160.23,160.22,167.39508108]
[1752180078384,42.48135007,160.23,160.22,199.01508108]
[1752180081980,40.60314437,160.23,160.22,199.70508108]
[1752180082204,41.85135007,160.23,160.22,199.01508108]
[1752180082503,41.7091885,160.23,160.22,199.01508108]
[1752180082993,41.85135007,160.23,160.22,199.01508108]
[1752180085997,41.91135007,160.23,160.22,199.01508108]
[1752180088689,42.54135007,160.23,160.22,199.01508108]
[1752180089377,41.91135007,160.23,160.22,199.01508108]
[1752180090384,41.91135007,160.23,160.22,172.69335221]
[1752180090994,35.57236523,160.23,160.22,172.69335221]
[1752180092280,34.32415953,160.23,160.22,172.69335221]
[1752180092894,35.57236523,160.23,160.22,172.69335221]
[1752180096494,35.57236523,160.23,160.22,173.38335221]
[1752180096495,34.32415953,160.23,160.22,173.38335221]
[1752180099407,34.32415953,160.23,160.22,172.69335221]
[1752180102411,34.32415953,160.23,160.22,173.38335221]
[1752180102633,33.89767482,160.23,160.22,173.38335221]
[1752180102788,16.91846629,160.23,160.22,173.38335221]
[1752180102987,16.91846629,160.23,160.22,179.55225221]
[1752180103184,16.91846629,160.23,160.22,181.17855221]
[1752180104925,34.12963497,160.23,160.22,181.17855221]
[1752180105136,41.96898199,160.23,160.22,181.17855221]
[1752180109489,41.96898199,160.23,160.22,149.55855221]
[1752180109706,41.96898199,160.23,160.22,181.17855221]
[1752180110722,41.96898199,160.23,160.22,143.38965221]
[1752180110918,41.96898199,160.23,160.22,172.69335221]
[1752180111511,41.96898199,160.23,160.22,173.38335221]
[1752180115414,41.96898199,160.23,160.22,141.76335221]
[1752180115615,41.96898199,160.23,160.22,173.38335221]
[1752180116807,41.96898199,160.23,160.22,172.69335221]
[1752180119141,43.84718769,160.23,160.22,141.07335221]
[1752180119307,43.84718769,160.23,160.22,172.69335221]
[1752180120531,46.16898199,160.23,160.22,172.69335221]
[1752180120716,41.96898199,160.23,160.22,173.36335221]
[1752180122002,41.82682042,160.23,160.22,173.36335221]
[1752180122209,41.96898199,160.23,160.22,173.36335221]
[1752180132539,41.96898199,160.23,160.22,172.69335221]
[1752180132540,43.84718769,160.23,160.22,172.69335221]
[1752180133037,43.21718769,160.23,160.22,172.69335221]
[1752180141028,41.96898199,160.23,160.22,172.69335221]
[1752180141223,41.96898199,160.23,160.22,173.36335221]
[1752180141430,24.75781331,160.23,160.22,173.36335221]
[1752180141652,33.70315026,160.23,160.22,173.36335221]
[1752180141827,34.12963497,160.23,160.22,173.36335221]
[1752180142027,43.96438345,160.23,160.22,173.36335221]
[1752180146853,26.75321477,160.23,160.22,173.36335221]
[1752180148755,16.91846629,160.23,160.22,173.36335221]
[1752180148937,42.91846629,160.23,160.22,173.36335221]
[1752180150730,41.25186629,160.23,160.22,173.36335221]
[1752180150938,35.82546381,160.23,160.22,179.83555221]
[1752180158044,0.06,160.23,160.22,179.83555221]
[1752180158445,0.06,160.25,160.22,179.83555221]
[1752180158757,0.06,160.25,160.23,32.31]
[1752180158938,26.06,160.25,160.24,31.6]
[1752180159141,26.06,160.25,160.24,32.31]
[1752180162450,0.06,160.25,160.24,32.31]
[1752180169874,32.52227137,160.25,160.24,0.71]
[1752180170078,40.36086406,160.25,160.24,0.71]
[1752180170852,40.36086406,160.25,160.24,32.31]
[1752180171051,40.36086406,160.25,160.24,0.71]
[1752180171251,40.36086406,160.25,160.24,32.31]
[1752180175065,6.52227137,160.25,160.24,32.31]
[1752180182380,6.52227137,160.25,160.24,32.31]
[1752180187372,0.06,160.25,160.24,32.31]
[1752180188792,0.06,160.25,160.23,0.71]
[1752180189176,26.06,160.25,160.23,0.71]
[1752180189386,26.06,160.25,160.22,230.07335221]
[1752180189572,26.06,160.25,160.24,0.71]
[1752180190386,26.06,160.25,160.24,32.31]
[1752180195085,26.0,160.24,160.23,0.71]
[1752180195285,26.0,160.24,160.22,141.07335221]
[1752180195884,26.0,160.24,160.23,0.71]
[1752180196392,26.0,160.24,160.23,32.31]
[1752180201307,26.0,160.24,160.23,0.71]
[1752180201518,26.0,160.24,160.23,32.29]
[1752180214715,0.06,160.24,160.23,32.29]
[1752180215108,0.06,160.24,160.23,32.91410285]
[1752180221103,0.06,160.24,160.23,32.29]
[1752180221811,0.06,160.24,160.22,141.79335221]
[1752180221998,0.06,160.24,160.23,0.72]
[1752180223223,0.06,160.24,160.23,32.3]
[1752180226711,0.06,160.24,160.23,0.72]
[1752180227007,0.69,160.24,160.22,141.07335221]
[1752180227207,0.06,160.24,160.22,141.79335221]
[1752180231016,0.06,160.24,160.23,31.58]
[1752180231222,0.06,160.24,160.22,141.79335221]
[1752180232319,0.06,160.24,160.23,0.68]
[1752180233110,0.06,160.24,160.23,32.26]
[1752180240734,0.06,160.24,160.23,32.88410285]
[1752180241235,0.06,160.25,160.23,145.26468682]
[1752180241413,5.99370991,160.29,160.26,1.505]
[1752180241607,5.99370991,160.29,160.27,32.20394708]
[1752180241813,5.99370991,160.29,160.28,0.68]
[1752180248843,5.99370991,160.29,160.27,0.62394708]
[1752180249151,5.99370991,160.29,160.28,31.56]
[1752180249322,5.99370991,160.29,160.26,0.68]
[1752180249648,5.99370991,160.29,160.27,0.68]
[1752180251023,5.99370991,160.29,160.24,0.6240639]
[1752180251222,6.64370991,160.29,160.25,0.68]
[1752180251932,6.64370991,160.29,160.26,31.56]
[1752180252119,6.64370991,160.29,160.25,0.68]
[1752180252326,6.64370991,160.29,160.26,0.68]
[1752180253351,5.99370991,160.29,160.27,0.68]
[1752180254129,5.99370991,160.29,160.28,1.30390816]
[1752180255230,5.99370991,160.29,160.28,32.86390816]
[1752180256645,5.99370991,160.29,160.28,121.86390816]
[1752180272574,5.99370991,160.29,160.28,138.64859213]
[1752180272781,5.99370991,160.29,160.28,138.02468397]
[1752180276864,5.99370991,160.29,160.28,106.46468397]
[1752180277176,5.99370991,160.29,160.28,138.62859213]
[1752180277367,5.99370991,160.29,160.28,138.00468397]
[1752180280694,6.71370991,160.29,160.25,0.03]
[1752180280886,6.71370991,160.29,160.26,0.71]
[1752180281268,5.99370991,160.29,160.26,0.71]
[1752180281459,5.99370991,160.29,160.27,0.62394708]
[1752180281889,5.99370991,160.29,160.28,63.1]
[1752180282094,5.99370991,160.29,160.28,90.02]
[1752180282899,5.99370991,160.29,160.28,90.73]
[1752180283190,5.99370991,160.29,160.28,108.13859213]
[1752180286493,5.99370991,160.29,160.28,197.13859213]
[1752180286679,5.99370991,160.29,160.28,196.51468397]
[1752180288185,5.99370991,160.29,160.28,196.94116868]
[1752180289380,0.72,160.38,160.3,17.21116868]
[1752180289584,0.72,160.38,160.32,16.78468397]
[1752180289797,0.72,160.38,160.33,63.72371359]
[1752180290089,0.72,160.38,160.33,64.43371359]
[1752180290297,0.72,160.38,160.34,0.71]
[1752180290485,0.72,160.38,160.35,63.72363579]
[1752180290788,0.72,160.37,160.35,63.72363579]
[1752180291090,27.6273,160.4,160.35,63.72363579]
[1752180291295,0.72,160.38,160.35,63.72363579]
[1752180291498,0.72,160.37,160.35,63.72363579]
[1752180292579,0.7,160.36,160.35,63.72363579]
[1752180292779,0.7,160.38,160.35,63.72363579]
[1752180293423,0.7,160.39,160.35,64.38363579]
[1752180293580,26.7,160.39,160.36,0.66]
[1752180293783,26.0,160.39,160.37,63.08]
[1752180294396,0.7,160.39,160.37,63.08]
[1752180294901,26.1,160.4,160.38,0.62351914]
[1752180295200,26.1,160.4,160.39,63.08]
[1752180295498,33.35572546,160.4,160.39,63.08]
[1752180295709,32.65572546,160.4,160.39,63.08]
[1752180295914,0.1,160.4,160.39,152.74]
[1752180296194,0.1,160.4,160.39,169.52468397]
[1752180297101,0.1,160.4,160.39,169.95116868]
[1752180297513,0.1,160.4,160.39,178.19676868]
[1752180297819,0.1,160.41,160.4,106.11116868]
[1752180297997,0.1,160.41,160.4,107.39461007]
[1752180299682,0.1,160.46,160.41,17.21116868]
[1752180299908,0.1,160.46,160.44,0.28432314]
[1752180300206,0.1,160.46,160.45,81.37009265]
[1752180300415,0.1,160.46,160.45,170.27009265]
[1752180300603,0.1,160.46,160.45,169.64684554]
[1752180303122,0.8,160.46,160.45,120.48]
[1752180303913,0.1,160.46,160.45,120.48]
[1752180304587,0.1,160.46,160.45,121.10324711]
[1752180305212,0.8,160.46,160.45,121.10324711]
[1752180305413,0.1,160.46,160.45,121.76324711]
[1752180305610,0.1,160.46,160.45,121.08324711]
[1752180306419,0.1,160.46,160.45,121.74324711]
[1752180308031,0.1,160.46,160.45,121.08324711]
[1752180309620,0.8,160.46,160.42,88.9]
[1752180309796,26.0,160.45,160.4,88.9]
[1752180309999,26.0,160.45,160.41,31.58]
[1752180310000,0.7,160.44,160.41,31.58]
[1752180310310,0.7,160.44,160.42,31.58]
[1752180311018,26.0,160.45,160.42,31.58]
[1752180311220,0.7,160.44,160.43,31.58]
[1752180311404,0.7,160.44,160.4,88.9]
[1752180311602,26.0,160.45,160.4,89.56]
[1752180311803,0.7,160.44,160.4,89.56]
[1752180312712,0.7,160.44,160.41,31.58]
[1752180313132,26.0,160.45,160.42,1.28336367]
[1752180313308,26.0,160.45,160.43,31.58]
[1752180317029,26.0,160.45,160.43,32.24]
[1752180317634,26.0,160.45,160.43,31.58]
[1752180318936,26.0,160.45,160.43,32.24]
[1752180320015,0.1,160.46,160.43,31.58]
[1752180320343,0.1,160.46,160.44,1.28328596]
[1752180320639,0.1,160.46,160.45,31.56]
[1752180328042,0.82,160.46,160.41,116.5]
[1752180328822,0.82,160.46,160.41,115.83]
[1752180329226,0.82,160.46,160.42,31.54]
[1752180329627,0.1,160.46,160.43,31.54]
[1752180329836,0.72,160.45,160.43,31.54]
[1752180331046,0.1,160.46,160.41,115.83]
[1752180331219,0.72,160.44,160.42,31.54]
[1752180331419,0.1,160.46,160.42,31.54]
[1752180331729,0.72,160.45,160.43,31.54]
[1752180332249,0.72,160.45,160.41,26.93]
[1752180332452,0.72,160.44,160.41,26.93]
[1752180333535,0.72,160.44,160.42,31.54]
[1752180333924,26.72,160.44,160.41,0.03]
[1752180334333,26.0,160.42,160.41,0.03]
[1752180334829,27.00432314,160.42,160.41,0.03]
[1752180335030,33.06863186,160.42,160.41,0.03]
[1752180335450,39.63563114,160.42,160.41,0.03]
[1752180335851,39.63563114,160.42,160.41,31.59]
[1752180336329,39.63563114,160.42,160.41,0.03]
[1752180336528,39.63563114,160.42,160.41,31.59]
[1752180336727,56.56247668,160.42,160.41,0.03]
[1752180337033,56.56247668,160.42,160.41,31.59]
[1752180337546,62.8596115,160.42,160.41,31.59]
[1752180337750,62.8596115,160.42,160.41,0.03]
[1752180337936,26.0,160.38,160.34,26.9]
[1752180338141,26.72,160.37,160.31,0.67]
[1752180338339,0.72,160.36,160.31,0.67]
[1752180338538,26.0,160.37,160.31,0.67]
[1752180338739,0.72,160.35,160.31,0.67]
[1752180338944,0.72,160.36,160.32,0.67]
[1752180339545,0.72,160.36,160.33,31.56]
[1752180339748,0.72,160.36,160.32,0.67]
[1752180340052,26.0,160.37,160.33,31.56]
[1752180340235,26.0,160.38,160.34,0.67]
[1752180340747,26.0,160.38,160.35,0.67]
[1752180340952,26.72,160.38,160.35,0.67]
[1752180341148,26.72,160.38,160.33,32.23]
[1752180341464,26.72,160.38,160.34,0.67]
[1752180342257,26.0,160.38,160.34,0.67]
[1752180342442,26.72,160.38,160.34,0.67]
[1752180345959,26.72,160.38,160.33,120.46]
[1752180345960,0.72,160.37,160.33,120.46]
[1752180346149,0.72,160.37,160.34,0.03]
[1752180347060,0.72,160.36,160.34,0.03]
[1752180350848,28.3059,160.38,160.34,0.03]
[1752180351169,28.3059,160.38,160.35,31.58]
[1752180351369,28.3059,160.38,160.34,0.7]
[1752180353066,27.5859,160.38,160.34,0.7]
[1752180353367,0.71,160.37,160.35,31.58]
[1752180353540,0.71,160.37,160.34,0.03]
[1752180355584,0.71,160.37,160.35,31.58]
[1752180355883,0.71,160.36,160.34,0.03]
[1752180357368,0.71,160.35,160.34,0.03]
[1752180357956,0.71,160.35,160.34,31.61]
[1752180358863,26.71,160.38,160.34,32.28]
[1752180359177,0.71,160.37,160.34,31.61]
[1752180359761,0.71,160.36,160.34,0.03]
[1752180359963,0.71,160.36,160.35,31.58]
[1752180360260,0.71,160.37,160.34,0.03]
[1752180361663,26.0,160.38,160.34,0.7]
[1752180361866,26.71,160.38,160.35,0.67]
[1752180362172,26.71,160.38,160.36,31.58]
[1752180362367,26.71,160.38,160.34,0.03]
[1752180362572,0.71,160.37,160.34,0.03]
[1752180363788,18.35838397,160.36,160.34,0.03]
[1752180363955,6.91172732,160.35,160.34,0.03]
[1752180364284,24.40641129,160.35,160.34,0.03]
[1752180364688,24.40641129,160.35,160.34,31.63]
[1752180365273,7.47956575,160.35,160.34,31.63]
[1752180369566,0.99432314,160.35,160.34,31.63]
[1752180371577,7.4493053,160.35,160.34,31.63]
[1752180376979,7.4493053,160.35,160.34,0.03]
[1752180377180,7.4493053,160.35,160.34,31.61]
[1752180382386,7.4493053,160.35,160.34,31.59]
[1752180383182,7.4493053,160.35,160.34,0.03]
[1752180383381,7.4493053,160.35,160.34,31.59]
[1752180383792,24.37615084,160.35,160.34,31.59]
[1752180384604,6.45498216,160.35,160.34,31.59]
[1752180384796,6.45498216,160.37,160.34,32.28]
[1752180385007,26.0,160.35,160.34,31.59]
[1752180385189,32.45498216,160.35,160.34,31.59]
[1752180385721,32.45498216,160.35,160.34,32.28]
[1752180386290,6.45498216,160.35,160.34,32.28]
[1752180387278,26.0,160.38,160.34,32.28]
[1752180387478,6.50326128,160.37,160.35,0.69]
[1752180388186,6.50326128,160.37,160.36,0.69]
[1752180390900,0.1,160.46,160.36,0.69]
[1752180390901,26.0,160.41,160.36,0.69]
[1752180391120,6.50262873,160.4,160.36,0.69]
[1752180391709,26.0,160.38,160.37,0.69]
[1752180391885,0.28432314,160.4,160.35,0.69]
[1752180392082,7.48665889,160.4,160.34,31.59]
[1752180392398,7.48665889,160.4,160.36,0.69]
[1752180393192,0.7,160.39,160.37,31.58]
[1752180393401,26.7,160.38,160.34,0.72]
[1752180393588,6.50233575,160.37,160.34,0.72]
[1752180393987,6.50233575,160.37,160.35,0.69]
[1752180394510,6.50233575,160.37,160.36,31.58]
[1752180394683,6.50233575,160.37,160.35,0.69]
[1752180395410,6.50233575,160.37,160.36,0.69]
[1752180395906,6.50233575,160.37,160.36,32.27]
[1752180396501,26.0,160.39,160.36,32.27]
[1752180396703,6.52222774,160.38,160.36,32.27]
[1752180399115,6.52222774,160.38,160.37,0.69]
[1752180399704,6.52222774,160.38,160.36,31.58]
[1752180399909,6.52222774,160.38,160.36,32.27]
[1752180403423,26.0,160.39,160.36,32.27]
[1752180405406,26.7,160.39,160.36,31.58]
[1752180406017,26.0,160.39,160.37,0.69]
[1752180406908,26.0,160.39,160.36,31.58]
[1752180407232,26.0,160.39,160.36,32.27]
[1752180407611,26.0,160.39,160.36,31.58]
[1752180407827,26.0,160.39,160.37,0.69]
[1752180409217,26.0,160.39,160.36,31.58]
[1752180409534,26.0,160.39,160.36,32.27]
[1752180409739,26.7,160.39,160.36,31.58]
[1752180410037,26.7,160.39,160.36,32.27]
[1752180410735,26.0,160.39,160.36,32.27]
[1752180411343,26.0,160.39,160.36,31.58]
[1752180411513,26.0,160.39,160.37,0.69]
[1752180412918,26.0,160.39,160.36,32.31]
[1752180414729,26.0,160.39,160.37,0.7]
[1752180415928,26.0,160.39,160.36,31.61]
[1752180416331,26.0,160.39,160.37,0.7]
[1752180418246,26.0,160.39,160.36,32.31]
[1752180422525,26.69,160.39,160.36,31.61]
[1752180422725,7.19318571,160.38,160.36,31.61]
[1752180422930,26.0,160.38,160.36,0.03]
[1752180423152,24.40489809,160.37,160.36,0.03]
[1752180423323,30.46931538,160.37,160.36,0.03]
[1752180423515,30.46931538,160.37,160.36,0.00204688]
[1752180423516,39.56521253,160.37,160.36,0.00204688]
[1752180423719,43.06900711,160.35,160.34,0.03]
[1752180423918,26.0,160.26,160.25,0.03]
[1752180424232,26.0,160.26,160.25,31.61]
[1752180424829,32.61545712,160.26,160.25,31.61]
[1752180425232,26.0,160.26,160.25,0.03]